fUST/lending_fUST_20250806
["ID","MTS","AMOUNT","RATE_DAILY","PERIOD"]
[377495888,1754429452978,-460.0,0.00027945,2]
[377495889,1754429452988,-490.79,0.00027945,2]
[377495890,1754429452997,-1154.74,0.00027945,2]
[377495891,1754429453007,-460.0,0.00027945,2]
[377495892,1754429453017,-460.0,0.00027945,2]
[377495893,1754429453026,-460.0,0.00027945,2]
[377495894,1754429453035,-460.0,0.00027945,2]
[377495895,1754429453045,-500.0,0.00027945,2]
[377495896,1754429453054,-460.0,0.00027945,2]
[377495897,1754429453064,-2365.9,0.00027945,2]
[377495898,1754429453074,-460.0,0.00027945,2]
[377495899,1754429453084,-460.0,0.00027945,2]
[377495900,1754429453094,-460.0,0.00027945,2]
[377495901,1754429453104,-2705.9,0.00027945,2]
[377495902,1754429453114,-460.0,0.00027945,2]
[377495903,1754429453124,-460.0,0.00027945,2]
[377495904,1754429453133,-460.0,0.00027945,2]
[377495905,1754429453143,-460.0,0.00027945,2]
[377495906,1754429453152,-742.9,0.00027945,2]
[377495907,1754429453162,-460.0,0.00027945,2]
[377495908,1754429453171,-460.0,0.00027945,2]
[377495909,1754429453181,-460.0,0.00027945,2]
[377495910,1754429453191,-866.16,0.00027945,2]
[377495911,1754429453200,-555.68,0.00027945,2]
[377495912,1754429453210,-460.0,0.00027945,2]
[377495913,1754429453221,-460.0,0.00027945,2]
[377495914,1754429453281,-460.0,0.00027945,2]
[377495915,1754429453291,-460.0,0.00027945,2]
[377495916,1754429453300,-466.55791922,0.00027945,2]
[377495917,1754429453310,-460.0,0.00027945,2]
[377495918,1754429453320,-460.0,0.00027945,2]
[377495919,1754429453328,-460.0,0.00027945,2]
[377495920,1754429453338,-1093.91,0.00027945,2]
[377495921,1754429453347,-460.0,0.00027945,2]
[377495922,1754429453356,-460.0,0.00027945,2]
[377495923,1754429453365,-460.0,0.00027945,2]
[377495924,1754429453374,-460.0,0.00027945,2]
[377495925,1754429453384,-460.0,0.00027945,2]
[377495926,1754429453393,-5056.15,0.00027945,2]
[377495927,1754429453403,-329.29791398,0.00027945,2]
[377495928,1754429453412,-975.87,0.00027945,2]
[377495929,1754429453422,-1579.03,0.00027945,2]
[377495930,1754429453432,-460.0,0.00027945,2]
[377495931,1754429453441,-1933.65,0.00027945,2]
[377495932,1754429453451,-460.0,0.00027945,2]
[377495933,1754429453460,-460.0,0.00027945,2]
[377495934,1754429453470,-460.0,0.00027945,2]
[377495935,1754429453482,-1460.3,0.00027945,2]
[377495936,1754429453492,-909.37,0.00027945,2]
[377495937,1754429453501,-1357.16,0.00027945,2]
[377495938,1754429453511,-460.0,0.00027945,2]
[377495939,1754429453520,-460.0,0.00027945,2]
[377495940,1754429453530,-460.0,0.00027945,2]
[377495941,1754429453539,-758.18,0.00027945,2]
[377495942,1754429453548,-460.0,0.00027945,2]
[377495943,1754429453558,-460.0,0.00027945,2]
[377495944,1754429453571,-460.0,0.00027945,2]
[377495945,1754429453581,-628.98,0.00027945,2]
[377495946,1754429453591,-460.0,0.00027945,2]
[377495947,1754429453601,-2456.07,0.00027945,2]
[377495948,1754429453611,-460.0,0.00027945,2]
[377495949,1754429453620,-460.0,0.00027945,2]
[377495950,1754429453629,-460.0,0.00027945,2]
[377495951,1754429453639,-460.0,0.00027945,2]
[377495952,1754429453648,-460.0,0.00027945,2]
[377495953,1754429453657,-460.0,0.00027945,2]
[377495954,1754429453676,-594.4,0.00027945,2]
[377495955,1754429453686,-2085.01,0.00027945,2]
[377495956,1754429453695,-460.0,0.00027945,2]
[377495957,1754429453705,-740.07,0.00027945,2]
[377495958,1754429453715,-460.0,0.00027945,2]
[377495959,1754429453724,-460.0,0.00027945,2]
[377495960,1754429453734,-460.0,0.00027945,2]
[377495961,1754429453752,-460.0,0.00027945,2]
[377495962,1754429453769,-75664.3,0.00027945,2]
[377495963,1754429453779,-557.90616759,0.00027945,2]
[377495964,1754429453788,-460.0,0.00027945,2]
[377495965,1754429453798,-460.0,0.00027945,2]
[377495966,1754429453808,-460.0,0.00027945,2]
[377495967,1754429453817,-460.0,0.00027945,2]
[377495968,1754429453826,-460.0,0.00027945,2]
[377495969,1754429453835,-597.5,0.00027945,2]
[377495970,1754429453844,-460.0,0.00027945,2]
[377495971,1754429453854,-1539.9,0.00027945,2]
[377495972,1754429453863,-460.0,0.00027945,2]
[377495973,1754429453872,-251.83690209,0.00027945,2]
[377495974,1754429453881,-460.0,0.00027945,2]
[377495975,1754429453891,-883.82,0.00027945,2]
[377495976,1754429453900,-460.0,0.00027945,2]
[377495977,1754429453910,-460.0,0.00027945,2]
[377495978,1754429453919,-460.0,0.00027945,2]
[377495979,1754429453928,-460.0,0.00027945,2]
[377495980,1754429453937,-460.0,0.00027945,2]
[377495981,1754429453946,-465.2347278,0.00027945,2]
[377495982,1754429453958,-2763.59,0.00027945,2]
[377495983,1754429453968,-460.0,0.00027945,2]
[377495984,1754429453978,-500.0,0.00027945,2]
[377495985,1754429453987,-460.0,0.00027945,2]
[377495986,1754429453997,-460.0,0.00027945,2]
[377495987,1754429454007,-460.0,0.00027945,2]
[377495988,1754429454017,-538.40487992,0.00027945,2]
[377495989,1754429454027,-460.0,0.00027945,2]
[377495990,1754429454037,-790.56,0.00027945,2]
[377495991,1754429454047,-464.56576644,0.00027945,2]
[377495992,1754429454058,-211.08717982,0.00027945,2]
[377495993,1754429454069,-463.61226067,0.00027945,2]
[377495994,1754429454079,-1031.45,0.00027945,2]
[377495995,1754429454089,-466.69684792,0.00027945,2]
[377495996,1754429454098,-759.32,0.00027945,2]
[377495997,1754429454107,-460.0,0.00027945,2]
[377495998,1754429454117,-7586.92,0.00027945,2]
[377495999,1754429454126,-460.0,0.00027945,2]
[377496000,1754429454135,-787.25,0.00027945,2]
[377496001,1754429454144,-460.0,0.00027945,2]
[377496002,1754429454154,-460.0,0.00027945,2]
[377496003,1754429454163,-498.05,0.00027945,2]
[377496004,1754429454173,-460.0,0.00027945,2]
[377496005,1754429454182,-460.0,0.00027945,2]
[377496006,1754429454192,-460.0,0.00027945,2]
[377496007,1754429454201,-460.0,0.00027945,2]
[377496008,1754429454211,-460.0,0.00027945,2]
[377496009,1754429454220,-1040.96,0.00027945,2]
[377496010,1754429454230,-460.0,0.00027945,2]
[377496011,1754429454239,-460.0,0.00027945,2]
[377496012,1754429454248,-460.0,0.00027945,2]
[377496013,1754429454258,-460.0,0.00027945,2]
[377496014,1754429454267,-460.0,0.00027945,2]
[377496015,1754429454276,-460.0,0.00027945,2]
[377496016,1754429454286,-2012.92,0.00027945,2]
[377496017,1754429454295,-460.0,0.00027945,2]
[377496018,1754429454304,-460.0,0.00027945,2]
[377496019,1754429454313,-6734.57,0.00027945,2]
[377496020,1754429454323,-460.0,0.00027945,2]
[377496021,1754429454332,-1457.79,0.00027945,2]
[377496022,1754429454341,-1073.67,0.00027945,2]
[377496023,1754429454350,-460.0,0.00027945,2]
[377496024,1754429454360,-460.0,0.00027945,2]
[377496025,1754429454371,-460.0,0.00027945,2]
[377496026,1754429454380,-460.0,0.00027945,2]
[377496027,1754429454391,-460.0,0.00027945,2]
[377496028,1754429454400,-729.8,0.00027945,2]
[377496029,1754429454409,-460.0,0.00027945,2]
[377496030,1754429454420,-460.0,0.00027945,2]
[377496031,1754429454429,-460.0,0.00027945,2]
[377496032,1754429454438,-460.0,0.00027945,2]
[377496033,1754429454447,-229.03377519,0.00027945,2]
[377496034,1754429454457,-460.0,0.00027945,2]
[377496035,1754429454467,-460.0,0.00027945,2]
[377496036,1754429454478,-1132.05,0.00027945,2]
[377496037,1754429454487,-460.0,0.00027945,2]
[377496038,1754429454497,-460.0,0.00027945,2]
[377496039,1754429454507,-460.0,0.00027945,2]
[377496040,1754429454517,-160.0,0.00027946,2]
[377496041,1754429454527,-2434.74389024,0.0002796,2]
[377496042,1754429454537,-500.0,0.00027973,5]
[377496043,1754429454547,-393.43809798,0.00027973,5]
[377496044,1754429454556,-500.0,0.00027973,5]
[377496045,1754429454569,-500.0,0.00027973,5]
[377496046,1754429454579,-150.0,0.00027973,5]
[377496047,1754429454588,-235.82297017,0.00027973,5]
[377496048,1754429454598,-306.737936,0.00028,10]
[377496049,1754429454609,-461.15695721,0.00028,10]
[377496050,1754429454619,-231.72586818,0.00028,3]
[377496051,1754429454630,-552.31596102,0.00028,2]
[377496052,1754429454640,-527.3554621,0.00028,3]
[377496053,1754429454650,-2524.82941417,0.00028015,2]
[377496054,1754429454660,-2618.2481025,0.0002807,2]
[377496055,1754429454670,-150.0,0.00028112,2]
[377496056,1754429454679,-2715.12328229,0.00028125,2]
[377496057,1754429454690,-2815.58284374,0.0002818,2]
[377496058,1754429454700,-460.0,0.00028219,2]
[377496059,1754429454710,-460.0,0.00028219,2]
[377496060,1754429454720,-460.0,0.00028219,2]
[377496061,1754429454731,-460.0,0.00028219,2]
[377496062,1754429454740,-460.0,0.00028219,2]
[377496063,1754429454751,-189.96150134,0.00028219,2]
[377496064,1754429454760,-557.31513292,0.00028219,2]
[377496065,1754429454770,-460.0,0.00028219,2]
[377496066,1754429454780,-464.06820011,0.00028219,2]
[377496067,1754429454790,-460.0,0.00028219,2]
[377496068,1754429454800,-460.0,0.00028219,2]
[377496069,1754429454810,-460.0,0.00028219,2]
[377496070,1754429454819,-500.0,0.00028219,5]
[377496071,1754429454830,-460.0,0.00028219,2]
[377496072,1754429454840,-460.0,0.00028219,2]
[377496073,1754429454849,-460.0,0.00028219,2]
[377496074,1754429454858,-460.0,0.00028219,2]
[377496075,1754429454868,-460.0,0.00028219,2]
[377496076,1754429454878,-221.54304821,0.00028219,2]
[377496077,1754429454887,-460.0,0.00028219,2]
[377496078,1754429454897,-460.0,0.00028219,2]
[377496079,1754429454906,-460.0,0.00028219,2]
[377496080,1754429454915,-468.73380115,0.00028219,2]
[377496081,1754429454925,-460.0,0.00028219,2]
[377496082,1754429454934,-460.0,0.00028219,2]
[377496083,1754429454944,-2599.73,0.00028219,2]
[377496084,1754429454953,-460.0,0.00028219,2]
[377496085,1754429454962,-500.0,0.00028219,2]
[377496086,1754429454972,-647.28,0.00028219,2]
[377496087,1754429454983,-460.0,0.00028219,2]
[377496088,1754429454992,-460.0,0.00028219,2]
[377496089,1754429455002,-460.0,0.00028219,2]
[377496090,1754429455012,-460.0,0.00028219,2]
[377496091,1754429455022,-460.0,0.00028219,2]
[377496092,1754429455031,-460.0,0.00028219,2]
[377496093,1754429455041,-460.0,0.00028219,2]
[377496094,1754429455050,-460.0,0.00028219,2]
[377496095,1754429455060,-460.0,0.00028219,2]
[377496096,1754429455070,-460.0,0.00028219,2]
[377496097,1754429455080,-460.0,0.00028219,2]
[377496098,1754429455089,-460.0,0.00028219,2]
[377496099,1754429455099,-460.0,0.00028219,2]
[377496100,1754429455108,-460.0,0.00028219,2]
[377496101,1754429455118,-460.0,0.00028219,2]
[377496102,1754429455128,-460.0,0.00028219,2]
[377496103,1754429455137,-460.0,0.00028219,2]
[377496104,1754429455147,-460.0,0.00028219,2]
[377496105,1754429455158,-460.0,0.00028219,2]
[377496106,1754429455170,-460.0,0.00028219,2]
[377496107,1754429455184,-460.0,0.00028219,2]
[377496108,1754429455193,-460.0,0.00028219,2]
[377496109,1754429455203,-460.0,0.00028219,2]
[377496110,1754429455212,-461.69525378,0.00028219,2]
[377496111,1754429455223,-460.0,0.00028219,2]
[377496112,1754429455233,-460.0,0.00028219,2]
[377496113,1754429455243,-890.25,0.00028219,2]
[377496114,1754429455253,-460.0,0.00028219,2]
[377496115,1754429455263,-1215.52,0.00028219,2]
[377496116,1754429455273,-460.0,0.00028219,2]
[377496117,1754429455282,-460.0,0.00028219,2]
[377496118,1754429455291,-460.0,0.00028219,2]
[377496119,1754429455301,-460.0,0.00028219,2]
[377496120,1754429455310,-460.0,0.00028219,2]
[377496121,1754429455320,-460.0,0.00028219,2]
[377496122,1754429455330,-460.0,0.00028219,2]
[377496123,1754429455340,-460.0,0.00028219,2]
[377496124,1754429455349,-460.0,0.00028219,2]
[377496125,1754429455358,-468.22517412,0.00028219,2]
[377496126,1754429455369,-460.0,0.00028219,2]
[377496127,1754429455379,-1613.88,0.00028219,2]
[377496128,1754429455388,-422.38891217,0.00028219,2]
[377496129,1754429455397,-460.0,0.00028219,2]
[377496130,1754429455407,-460.0,0.00028219,2]
[377496131,1754429455416,-460.0,0.00028219,2]
[377496132,1754429455426,-1003.33,0.00028219,2]
[377496133,1754429455436,-460.0,0.00028219,2]
[377496134,1754429455446,-460.0,0.00028219,2]
[377496135,1754429455455,-460.0,0.00028219,2]
[377496136,1754429455465,-460.0,0.00028219,2]
[377496137,1754429455474,-460.0,0.00028219,2]
[377496138,1754429455484,-460.0,0.00028219,2]
[377496139,1754429455493,-460.0,0.00028219,2]
[377496140,1754429455503,-460.0,0.00028219,2]
[377496141,1754429455513,-460.0,0.00028219,2]
[377496142,1754429455523,-509.39857511,0.00028219,2]
[377496143,1754429455533,-460.0,0.00028219,2]
[377496144,1754429455543,-460.0,0.00028219,2]
[377496145,1754429455553,-910.87,0.00028219,2]
[377496146,1754429455564,-460.0,0.00028219,2]
[377496147,1754429455576,-460.0,0.00028219,2]
[377496148,1754429455586,-460.0,0.00028219,2]
[377496149,1754429455595,-460.0,0.00028219,2]
[377496150,1754429455606,-460.0,0.00028219,2]
[377496151,1754429455615,-460.0,0.00028219,2]
[377496152,1754429455625,-460.0,0.00028219,2]
[377496153,1754429455635,-460.0,0.00028219,2]
[377496154,1754429455645,-460.0,0.00028219,2]
[377496155,1754429455655,-1721.06,0.00028219,2]
[377496156,1754429455664,-460.0,0.00028219,2]
[377496157,1754429455674,-460.0,0.00028219,2]
[377496158,1754429455683,-468.69085504,0.00028219,2]
[377496159,1754429455693,-460.0,0.00028219,2]
[377496160,1754429455702,-271.17445607,0.00028219,2]
[377496161,1754429455712,-460.0,0.00028219,2]
[377496162,1754429455722,-464.55059867,0.00028219,2]
[377496163,1754429455732,-460.0,0.00028219,2]
[377496164,1754429455741,-460.0,0.00028219,2]
[377496165,1754429455751,-314.82570417,0.00028219,2]
[377496166,1754429455761,-460.0,0.00028219,2]
[377496167,1754429455771,-460.0,0.00028219,2]
[377496168,1754429455781,-475.04,0.00028219,2]
[377496169,1754429455791,-460.0,0.00028219,2]
[377496170,1754429455801,-460.0,0.00028219,2]
[377496171,1754429455811,-460.0,0.00028219,2]
[377496172,1754429455822,-460.0,0.00028219,2]
[377496173,1754429455831,-460.0,0.00028219,2]
[377496174,1754429455842,-460.0,0.00028219,2]
[377496175,1754429455851,-460.0,0.00028219,2]
[377496176,1754429455861,-172.98268289,0.00028219,2]
[377496177,1754429455870,-510.22,0.00028219,2]
[377496178,1754429455880,-463.49832866,0.00028219,2]
[377496179,1754429455890,-460.0,0.00028219,2]
[377496180,1754429455900,-1697.81,0.00028219,2]
[377496181,1754429455909,-460.0,0.00028219,2]
[377496182,1754429455920,-460.0,0.00028219,2]
[377496183,1754429455930,-441.08510287,0.00028219,2]
[377496184,1754429455940,-460.0,0.00028219,2]
[377496185,1754429455950,-460.0,0.00028219,2]
[377496186,1754429455960,-460.0,0.00028219,2]
[377496187,1754429455970,-460.0,0.00028219,2]
[377496188,1754429455980,-460.0,0.00028219,2]
[377496189,1754429455990,-460.0,0.00028219,2]
[377496190,1754429456000,-460.0,0.00028219,2]
[377496191,1754429456010,-460.0,0.00028219,2]
[377496192,1754429456020,-460.0,0.00028219,2]
[377496193,1754429456029,-465.71831603,0.00028219,2]
[377496194,1754429456039,-460.0,0.00028219,2]
[377496195,1754429456048,-473.95865051,0.00028219,2]
[377496196,1754429456058,-460.0,0.00028219,2]
[377496197,1754429456067,-602.19259852,0.00028219,2]
[377496198,1754429456077,-460.0,0.00028219,2]
[377496199,1754429456087,-460.0,0.00028219,2]
[377496200,1754429456097,-460.0,0.00028219,2]
[377496201,1754429456107,-460.0,0.00028219,2]
[377496202,1754429456116,-460.0,0.00028219,2]
[377496203,1754429456126,-460.0,0.00028219,2]
[377496204,1754429456135,-460.0,0.00028219,2]
[377496205,1754429456145,-460.0,0.00028219,2]
[377496206,1754429456154,-460.0,0.00028219,2]
[377496207,1754429456164,-460.0,0.00028219,2]
[377496208,1754429456173,-460.0,0.00028219,2]
[377496209,1754429456183,-460.0,0.00028219,2]
[377496210,1754429456192,-460.0,0.00028219,2]
[377496211,1754429456202,-460.0,0.00028219,2]
[377496212,1754429456212,-460.0,0.00028219,2]
[377496213,1754429456222,-460.0,0.00028219,2]
[377496214,1754429456231,-460.0,0.00028219,2]
[377496215,1754429456241,-1389.71,0.00028219,2]
[377496216,1754429456251,-460.0,0.00028219,2]
[377496217,1754429456261,-460.0,0.00028219,2]
[377496218,1754429456271,-1746.17,0.00028219,2]
[377496219,1754429456281,-460.0,0.00028219,2]
[377496220,1754429456291,-467.44737953,0.00028219,2]
[377496221,1754429456301,-460.0,0.00028219,2]
[377496222,1754429456311,-460.0,0.00028219,2]
[377496223,1754429456320,-479.05955579,0.00028219,2]
[377496224,1754429456330,-460.0,0.00028219,2]
[377496225,1754429456340,-604.18,0.00028219,2]
[377496226,1754429456352,-460.0,0.00028219,2]
[377496227,1754429456362,-460.0,0.00028219,2]
[377496228,1754429456371,-460.0,0.00028219,2]
[377496229,1754429456381,-1166.12,0.00028219,2]
[377496230,1754429456391,-885.05,0.00028219,2]
[377496231,1754429456401,-460.0,0.00028219,2]
[377496232,1754429456411,-1602.43,0.00028219,2]
[377496233,1754429456420,-460.0,0.00028219,2]
[377496234,1754429456430,-460.0,0.00028219,2]
[377496235,1754429456440,-1853.92,0.00028219,2]
[377496236,1754429456450,-460.0,0.00028219,2]
[377496237,1754429456459,-1621.7,0.00028219,2]
[377496238,1754429456470,-460.0,0.00028219,2]
[377496239,1754429456479,-460.0,0.00028219,2]
[377496240,1754429456489,-1277.23,0.00028219,2]
[377496241,1754429456499,-588.9,0.00028219,2]
[377496242,1754429456508,-460.0,0.00028219,2]
[377496243,1754429456518,-490.79,0.00028219,2]
[377496244,1754429456528,-1154.74,0.00028219,2]
[377496245,1754429456538,-460.0,0.00028219,2]
[377496246,1754429456547,-460.0,0.00028219,2]
[377496247,1754429456558,-460.0,0.00028219,2]
[377496248,1754429456571,-460.0,0.00028219,2]
[377496249,1754429456581,-500.0,0.00028219,2]
[377496250,1754429456590,-460.0,0.00028219,2]
[377496251,1754429456600,-460.0,0.00028219,2]
[377496252,1754429456610,-2365.9,0.00028219,2]
[377496253,1754429456620,-460.0,0.00028219,2]
[377496254,1754429456629,-460.0,0.00028219,2]
[377496255,1754429456640,-2705.9,0.00028219,2]
[377496256,1754429456651,-460.0,0.00028219,2]
[377496257,1754429456660,-460.0,0.00028219,2]
[377496258,1754429456671,-460.0,0.00028219,2]
[377496259,1754429456681,-460.0,0.00028219,2]
[377496260,1754429456823,-742.9,0.00028219,2]
[377496261,1754429456832,-460.0,0.00028219,2]
[377496262,1754429456842,-460.0,0.00028219,2]
[377496263,1754429456851,-460.0,0.00028219,2]
[377496264,1754429456860,-866.16,0.00028219,2]
[377496265,1754429456869,-555.68,0.00028219,2]
[377496266,1754429456878,-460.0,0.00028219,2]
[377496267,1754429456888,-460.0,0.00028219,2]
[377496268,1754429456897,-460.0,0.00028219,2]
[377496269,1754429456907,-460.0,0.00028219,2]
[377496270,1754429456917,-460.0,0.00028219,2]
[377496271,1754429456926,-460.0,0.00028219,2]
[377496272,1754429456935,-469.47556966,0.00028219,2]
[377496273,1754429456944,-1093.91,0.00028219,2]
[377496274,1754429456953,-460.0,0.00028219,2]
[377496275,1754429456962,-460.0,0.00028219,2]
[377496276,1754429456971,-460.0,0.00028219,2]
[377496277,1754429456982,-460.0,0.00028219,2]
[377496278,1754429456991,-460.0,0.00028219,2]
[377496279,1754429456999,-5056.15,0.00028219,2]
[377496280,1754429457008,-975.87,0.00028219,2]
[377496281,1754429457017,-1579.03,0.00028219,2]
[377496282,1754429457026,-460.0,0.00028219,2]
[377496283,1754429457035,-1933.65,0.00028219,2]
[377496284,1754429457044,-460.0,0.00028219,2]
[377496285,1754429457053,-553.95421163,0.00028219,2]
[377496286,1754429457063,-460.0,0.00028219,2]
[377496287,1754429457072,-1460.3,0.00028219,2]
[377496288,1754429457082,-909.37,0.00028219,2]
[377496289,1754429457091,-1357.16,0.00028219,2]
[377496290,1754429457101,-460.0,0.00028219,2]
[377496291,1754429457110,-460.0,0.00028219,2]
[377496292,1754429457120,-526.12901827,0.00028219,2]
[377496293,1754429457130,-758.18,0.00028219,2]
[377496294,1754429457139,-460.0,0.00028219,2]
[377496295,1754429457148,-460.0,0.00028219,2]
[377496296,1754429457157,-460.0,0.00028219,2]
[377496297,1754429457167,-628.98,0.00028219,2]
[377496298,1754429457176,-460.0,0.00028219,2]
[377496299,1754429457185,-460.0,0.00028219,2]
[377496300,1754429457194,-2456.07,0.00028219,2]
[377496301,1754429457203,-460.0,0.00028219,2]
[377496302,1754429457212,-460.0,0.00028219,2]
[377496303,1754429457221,-460.0,0.00028219,2]
[377496304,1754429457230,-460.0,0.00028219,2]
[377496305,1754429457239,-460.0,0.00028219,2]
[377496306,1754429457248,-594.4,0.00028219,2]
[377496307,1754429457257,-2085.01,0.00028219,2]
[377496308,1754429457267,-460.0,0.00028219,2]
[377496309,1754429457275,-740.07,0.00028219,2]
[377496310,1754429457284,-460.0,0.00028219,2]
[377496311,1754429457294,-460.0,0.00028219,2]
[377496312,1754429457303,-460.0,0.00028219,2]
[377496313,1754429457313,-460.0,0.00028219,2]
[377496314,1754429457322,-75664.3,0.00028219,2]
[377496315,1754429457332,-460.0,0.00028219,2]
[377496316,1754429457341,-460.0,0.00028219,2]
[377496317,1754429457351,-601.23593282,0.00028219,2]
[377496318,1754429457359,-460.0,0.00028219,2]
[377496319,1754429457368,-460.0,0.00028219,2]
[377496320,1754429457378,-597.5,0.00028219,2]
[377496321,1754429457386,-460.0,0.00028219,2]
[377496322,1754429457395,-1539.9,0.00028219,2]
[377496323,1754429457404,-460.0,0.00028219,2]
[377496324,1754429457413,-460.0,0.00028219,2]
[377496325,1754429457422,-883.82,0.00028219,2]
[377496326,1754429457431,-372.69821809,0.00028219,2]
[377496327,1754429457440,-460.0,0.00028219,2]
[377496328,1754429457449,-460.0,0.00028219,2]
[377496329,1754429457458,-460.0,0.00028219,2]
[377496330,1754429457467,-460.0,0.00028219,2]
[377496331,1754429457475,-2763.59,0.00028219,2]
[377496332,1754429457485,-460.0,0.00028219,2]
[377496333,1754429457494,-465.33961852,0.00028219,2]
[377496334,1754429457504,-460.0,0.00028219,2]
[377496335,1754429457513,-464.47872777,0.00028219,2]
[377496336,1754429457522,-460.0,0.00028219,2]
[377496337,1754429457531,-790.56,0.00028219,2]
[377496338,1754429457540,-1031.45,0.00028219,2]
[377496339,1754429457549,-759.32,0.00028219,2]
[377496340,1754429457559,-460.0,0.00028219,2]
[377496341,1754429457571,-7586.92,0.00028219,2]
[377496342,1754429457580,-460.0,0.00028219,2]
[377496343,1754429457589,-460.0,0.00028219,2]
[377496344,1754429457598,-787.25,0.00028219,2]
[377496345,1754429457608,-460.0,0.00028219,2]
[377496346,1754429457617,-498.05,0.00028219,2]
[377496347,1754429457626,-460.0,0.00028219,2]
[377496348,1754429457635,-460.0,0.00028219,2]
[377496349,1754429457645,-460.0,0.00028219,2]
[377496350,1754429457654,-460.0,0.00028219,2]
[377496351,1754429457663,-1040.96,0.00028219,2]
[377496352,1754429457672,-460.0,0.00028219,2]
[377496353,1754429457681,-460.0,0.00028219,2]
[377496354,1754429457690,-460.0,0.00028219,2]
[377496355,1754429457699,-460.0,0.00028219,2]
[377496356,1754429457708,-2012.92,0.00028219,2]
[377496357,1754429457717,-474.71259427,0.00028219,2]
[377496358,1754429457726,-460.0,0.00028219,2]
[377496359,1754429457736,-460.0,0.00028219,2]
[377496360,1754429457745,-6734.57,0.00028219,2]
[377496361,1754429457753,-460.0,0.00028219,2]
[377496362,1754429457763,-1457.79,0.00028219,2]
[377496363,1754429457772,-1073.67,0.00028219,2]
[377496364,1754429457781,-460.0,0.00028219,2]
[377496365,1754429457790,-460.0,0.00028219,2]
[377496366,1754429457799,-460.0,0.00028219,2]
[377496367,1754429457808,-460.0,0.00028219,2]
[377496368,1754429457818,-460.0,0.00028219,2]
[377496369,1754429457827,-729.8,0.00028219,2]
[377496370,1754429457836,-537.48175218,0.00028219,2]
[377496371,1754429457846,-464.24676428,0.00028219,2]
[377496372,1754429457856,-460.0,0.00028219,2]
[377496373,1754429457866,-460.0,0.00028219,2]
[377496374,1754429457875,-460.0,0.00028219,2]
[377496375,1754429457885,-1132.05,0.00028219,2]
[377496376,1754429457895,-460.0,0.00028219,2]
[377496377,1754429457904,-460.0,0.00028219,2]
[377496378,1754429457913,-460.0,0.00028219,2]
[377496379,1754429457923,-1000.0,0.00028221,5]
[377496380,1754429457932,-1001.66944274,0.00028221,5]
[377496381,1754429457942,-1000.0,0.00028221,2]
[377496382,1754429457951,-502.18745051,0.00028221,5]
[377496383,1754429457960,-500.0,0.00028221,5]
[377496384,1754429457970,-1000.0,0.00028221,5]
[377496385,1754429457979,-500.0,0.00028221,5]
[377496386,1754429457988,-500.0,0.00028221,5]
[377496387,1754429457998,-430.33298777,0.00028221,5]